Cogmind - Beta 15 @@@ ROGUE MODE // 2025.05.23 @ 13:52:51 // Winter2022/Polymind Player: Demo Result: Destroyed by as-10501 with Assembled Heavy Rifle Performance ------------- Evolutions (0) 0 Regions Visited (4) 800 Robots Destroyed (4) 20 Value Destroyed (134) 134 Prototype IDs (0) 0 Alien Tech Used (0) 0 Bonus (1990) 1990 TOTAL SCORE: 2864 Bonus ------- Polymind Skill 1990 Cogmind --------- Core Integrity 0/250 Matter 0/0 Energy 196/200 System Corruption 0% Temperature Cool (2) Movement Walking (120) Location -9/Mines Parts ------- > --- POWER (1) -------- Ion Engine > --- PROPULSION (2) --- Aluminum Leg Aluminum Leg > --- UTILITY (1) ------ Heat Sink > --- WEAPON (1) ------- Small Laser > --- INVENTORY (1) ---- (None) Peak State ------------ > --- POWER ------------ Light Nuclear Core > --- PROPULSION ------- Aluminum Leg Aluminum Leg > --- UTILITY ---------- Improved Heat Sink > --- WEAPON ----------- Particle Gun > --- INVENTORY -------- (None) [Rating: 10] Favorites ----------- Power Ion Engine Engine Ion Engine Power Core Light Nuclear Core Propulsion Aluminum Leg Leg Aluminum Leg Wheel Compact Wheel Utility Heat Sink Device Heat Sink Storage Small Storage Unit Weapon Small Laser Energy Gun Small Laser Build | -11 -10 -10 -10 -9 ------- Run | Yrd Mat Min Exi Min Slots Evolved . | . . . . . Power . | . . . . . Propulsion . | . . . . . Utility . | . . . . . Weapon . | . . . . . Parts Attached . | . . . . . Power . | . . . . . Engine . | . . . . . Core . | . . . . . Reactor . | . . . . . Propulsion . | . . . . . Treads . | . . . . . Leg . | . . . . . Wheel . | . . . . . Hover . | . . . . . Flight . | . . . . . Utility . | . . . . . Device . | . . . . . Storage . | . . . . . Processor . | . . . . . Hackware . | . . . . . Protection . | . . . . . Artifact . | . . . . . Weapon . | . . . . . Energy Gun . | . . . . . Energy Cannon . | . . . . . Ballistic Gun . | . . . . . Ballistic Cannon . | . . . . . Launcher . | . . . . . Special Weapon . | . . . . . Impact Weapon . | . . . . . Slashing Weapon . | . . . . . Piercing Weapon . | . . . . . Special Melee Weapon . | . . . . . Unidentified Prototypes . | . . . . . Parts Lost 4 | . . 4 . . Power 1 | . . 1 . . Propulsion 2 | . . 2 . . Utility . | . . . . . Weapon 1 | . . 1 . . Highest Loss Streak 4 | . . 4 . . To Critical Strikes . | . . . . . Average Backups 1 | . 2 1 . . Power . | . . . . . Propulsion . | . . . . . Utility . | . 1 . . . Weapon . | . 1 . . . Tool/Special . | . . . . . Unused Backups 6 | . 2 4 . . Power . | . . . . . Propulsion . | . . . . . Utility 4 | . 2 2 . . Weapon 2 | . . 2 . . Tool/Special . | . . . . . Average Slot Usage (%) 98 | . 100 97 100 100 Engine 18 | . 20 18 20 20 Core 1 | . . 1 . . Leg 24 | . . 24 40 40 Wheel 14 | . 40 15 . . Device 19 | . 20 19 20 20 Storage 7 | . 20 7 . . Energy Gun 12 | . . 11 20 20 Peak Build Rating 10 | 5 5 10 5 5 Average Rating 5 | 1 5 5 5 5 On Entrance 4 | . 5 5 5 5 Naked Turns 3 | . . 3 . . Heaviest Build 9 | 9 9 9 7 7 Greatest Support 32 | 32 32 32 20 20 Greatest Overweight (x) . | . . . . . Average Overweight (x) . | . . . . . Largest Inventory Capacity 4 | 4 4 4 1 1 Average Capacity 2 | 1 4 2 1 1 Most Carried 4 | . 4 4 . . Average Carried 1 | . 2 1 . . Final Capacity 4 | 4 4 1 1 1 Final Carried 4 | . 4 . . . Class Distribution -------------------- 63% | Grunt 35% | Recycler Dominant Class ---------------- Recycler | -10/Materials Grunt | -10/Mines Grunt | -10/Exiles Grunt | -9/Mines Resources | -11 -10 -10 -10 -9 ----------- Run | Yrd Mat Min Exi Min Matter Collected . | . . . . . Remotely . | . . . . . Salvage Created 166 | . . 166 . . Parts 2 | . . 2 . . Haulers Intercepted . | . . . . . Recyclers Shooed . | . . . . . Parts Field Recycled . | . . . . . Retrieved Matter . | . . . . . Parts Self-Destructed . | . . . . . Prevented . | . . . . . Kills | -11 -10 -10 -10 -9 ------- Run | Yrd Mat Min Exi Min Combat Hostiles Destroyed 3 | . . 3 . . Melee 1 | . . 1 . . Guns 2 | . . 2 . . Classes Destroyed 2 | . . 2 . . Recycler 1 | . . 1 . . Grunt 3 | . . 3 . . Best Kill Streak 2 | . . 2 . . Combat Bots Only 2 | . . 2 . . Max Kills in Single Turn 1 | . . 1 . . Gunslinging . | . . . . . Exploded . | . . . . . Melee 1 | . . 1 . . Uniques/NPCs Destroyed . | . . . . . Combat | -11 -10 -10 -10 -9 -------- Run | Yrd Mat Min Exi Min Hostile Shots Fired 73 | . . 70 . 3 Missed 22 | . . 22 . . Hits 51 | . . 48 . 3 Projectile 51 | . . 48 . 3 Damage Taken 689 | . . 650 . 39 Core 261 | . . 246 . 15 Absorbed by Shields . | . . . . . Core Remaining (%) 100 | 100 . . . . Volleys Fired 22 | . . 22 . . Largest 1 | . . 1 . . Hottest 65 | . . 65 . . Shots Fired 22 | . . 22 . . Gun 22 | . . 22 . . Cannon . | . . . . . Launcher . | . . . . . Special . | . . . . . Kinetic . | . . . . . Thermal 22 | . . 22 . . Explosive . | . . . . . Electromagnetic . | . . . . . Robot Hit Streak 7 | . . 7 . . Robot Miss Streak 2 | . . 2 . . Penetration Max . | . . . . . Secondary Targets . | . . . . . Shots Hit Robots 17 | . . 17 . . Core Hits 17 | . . 17 . . Critical Kills . | . . . . . Critical Parts Destroyed . | . . . . . Critical Strikes 1 | . . 1 . . Burn 1 | . . 1 . . Melee Attacks . | . . . . . Impact . | . . . . . Slashing . | . . . . . Piercing . | . . . . . Sneak Attacks . | . . . . . Combat Hostiles . | . . . . . Follow-up Attacks . | . . . . . Damage Inflicted 385 | . . 385 . . Guns 253 | . . 253 . . Cannons . | . . . . . Explosions . | . . . . . Melee . | . . . . . Ramming 132 | . . 132 . . Kinetic . | . . . . . Thermal 253 | . . 253 . . Explosive . | . . . . . Electromagnetic . | . . . . . Impact . | . . . . . Slashing . | . . . . . Piercing . | . . . . . Highest Corruption . | . . . . . Average Corruption . | . . . . . Corruption Purged . | . . . . . Corruption Blocked . | . . . . . Overload Shots . | . . . . . Overflow Damage . | . . . . . Projectiles . | . . . . . Explosions . | . . . . . Melee . | . . . . . Knockbacks 1 | . . 1 . . Impact 1 | . . 1 . . Kinetic . | . . . . . Secondary . | . . . . . Self-Inflicted Damage 8 | . . 8 . . Shots . | . . . . . Rammed 9 | . . 9 . . Targets Rammed 61 | . . 61 . . Kicked 52 | . . 52 . . Crushed . | . . . . . Highest Temperature 104 | . . 104 . . Average Temperature 49 | . . 49 . . Received Heat Transfer 357 | . . 357 . . Siege Activations . | . . . . . Martial Activations . | . . . . . Shielding Activations . | . . . . . Robots Disrupted . | . . . . . Combat Hostiles . | . . . . . Robots Corrupted . | . . . . . Combat Hostiles . | . . . . . Parts Fried . | . . . . . Impact Corruptions . | . . . . . Robots Melted . | . . . . . Combat Hostiles . | . . . . . Parts Melted 3 | . . 3 . . Heat Transferred 679 | . . 679 . . Parts Sabotaged . | . . . . . Parts Stolen . | . . . . . Parts Stripped . | . . . . . Power Chain Reactions . | . . . . . Alert | -11 -10 -10 -10 -9 ------- Run | Yrd Mat Min Exi Min Maximum Alert Level . | . . . . . Low Security (%) 100 | 100 100 100 . 100 Level 1 . | . . . . . Level 2 . | . . . . . Level 3 . | . . . . . Level 4 . | . . . . . Level 5 . | . . . . . High Security . | . . . . . Max Security . | . . . . . Peak Influence 50 | . . 50 . . Initial . | . . . . . Average 2 | . . 3 . . Influence Increases 120 | . . 120 . . Destroy 0b10 Robot/C 60 | . . 60 . . Destroy 0b10 Robot/NC 5 | . . 5 . . Destroy Leader 10 | . . 10 . . Lose Combat Pursuer 45 | . . 45 . . Influence Decreases 120 | . . 90 30 . Entered New Map 30 | . . . 30 . Time Decay 60 | . . 60 . . Lost Part 30 | . . 30 . . Squads Dispatched . | . . . . . Investigation . | . . . . . Extermination . | . . . . . Reinforcement . | . . . . . Assault . | . . . . . Garrison . | . . . . . Intercept . | . . . . . Searches Triggered . | . . . . . Construction Impeded . | . . . . . Haulers Reinforced . | . . . . . Active Scanning Responses . | . . . . . Cargo Convoy Interrupts . | . . . . . Stealth | -11 -10 -10 -10 -9 --------- Run | Yrd Mat Min Exi Min Distress Signals . | . . . . . Communications Jammed . | . . . . . Distress Signals . | . . . . . Times Spotted 13 | . . 11 . 2 Peak Tracking Total 10 | . . 4 . 10 Tactical Retreats 2 | . . 2 . . Traps | -11 -10 -10 -10 -9 ------- Run | Yrd Mat Min Exi Min Traps Triggered . | . . . . . Indirectly . | . . . . . Trap Hack Attempts . | . . . . . Triggered . | . . . . . Disarmed . | . . . . . Reprogrammed . | . . . . . Reused . | . . . . . Traps Extracted . | . . . . . Installed . | . . . . . Triggered . | . . . . . Machines | -11 -10 -10 -10 -9 ---------- Run | Yrd Mat Min Exi Min Machines Disabled . | . . . . . Max in Single Turn . | . . . . . Machines Repaired . | . . . . . Machines Dismantled . | . . . . . Machines Sabotaged . | . . . . . Overloaded Fab Kills . | . . . . . Hacking | -11 -10 -10 -10 -9 --------- Run | Yrd Mat Min Exi Min Machines Accessed 3 | . . 1 2 . Terminals . | . . . . . Fabricators . | . . . . . Repair Stations . | . . . . . Recycling Units . | . . . . . Scanalyzers . | . . . . . Garrison Access . | . . . . . Total Hacks 3 | . . 1 2 . Successful 3 | . . 1 2 . Failed . | . . . . . Catastrophic . | . . . . . Database Lockouts . | . . . . . Manual . | . . . . . Terminals . | . . . . . Fabricators . | . . . . . Repair Stations . | . . . . . Recycling Units . | . . . . . Scanalyzers . | . . . . . Garrison Access . | . . . . . Terminal Hacks 3 | . . 1 2 . Record 2 | . . . 2 . Open Door 1 | . . 1 . . Fabricator Hacks . | . . . . . Repair Station Hacks . | . . . . . Recycling Unit Hacks . | . . . . . Scanalyzer . | . . . . . Garrison Access Hacks . | . . . . . Unauthorized Hacks . | . . . . . Terminals . | . . . . . Fabricators . | . . . . . Repair Stations . | . . . . . Recycling Units . | . . . . . Scanalyzers . | . . . . . Garrison Access . | . . . . . Data Cores Recovered . | . . . . . Used . | . . . . . Hacking Detections . | . . . . . Full Trace Events . | . . . . . Feedback Events . | . . . . . Feedback Blocked . | . . . . . Robot Schematics Acquired . | . . . . . Robots Built . | . . . . . Authchips . | . . . . . Time . | . . . . . Total Robot Build Rating . | . . . . . Part Schematics Acquired . | . . . . . Parts Built . | . . . . . Authchips . | . . . . . Time . | . . . . . Total Part Build Rating . | . . . . . Parts Repaired . | . . . . . Time . | . . . . . Parts Recycled . | . . . . . Recycled Matter . | . . . . . Retrieved Matter . | . . . . . Retrieved Components . | . . . . . Parts Scanalyzed . | . . . . . Part Schematics Acquired . | . . . . . Parts Damaged . | . . . . . Bothacking | -11 -10 -10 -10 -9 ------------ Run | Yrd Mat Min Exi Min Used RIF Installer . | . . . . . Robots Hacked 2 | . . 2 . . Non-combat . | . . . . . Combat 2 | . . 2 . . Robot Hacks Applied 2 | . . 2 . . find_shortcuts 2 | . . 2 . . Relay Couplers Released . | . . . . . Fabnet Peak Effective % . | . . . . . Robots Rewired . | . . . . . Allies Hacked . | . . . . . Hacks Repelled . | . . . . . Allies | -11 -10 -10 -10 -9 -------- Run | Yrd Mat Min Exi Min Total Allies . | . . . . . Largest Group . | . . . . . Highest-Rated Group . | . . . . . Highest-Rated Ally . | . . . . . Total Orders . | . . . . . Ally Attacks . | . . . . . Total Damage . | . . . . . Kills . | . . . . . Allies Corrupted . | . . . . . Allies Melted . | . . . . . Intel | -11 -10 -10 -10 -9 ------- Run | Yrd Mat Min Exi Min Active Infowar (turns) . | . . . . . Robot Analysis Total 3 | 1 . 2 . . Derelict Logs Recovered 2 | . . 2 . . Drone Launches . | . . . . . Drone Recoveries . | . . . . . Exploration | -11 -10 -10 -10 -9 ------------- Run | Yrd Mat Min Exi Min Turns Passed 1300 | 18 151 839 275 17 Spaces Moved 1073 | 29 144 655 230 15 Core 25 | 21 . 4 . . Treads . | . . . . . Legs 591 | . . 346 230 15 Wheels 457 | 8 144 305 . . Hover . | . . . . . Flight . | . . . . . Fastest Speed 50 | 50 100 50 120 120 Average Speed 109 | 63 100 110 120 120 Slowest Speed 120 | 100 100 120 120 120 Overloaded Moves . | . . . . . Propulsion Burnouts . | . . . . . Robots Hopped . | . . . . . Potential Cave-ins . | . . . . . Cave-ins Triggered . | . . . . . Exploration Rate (%) 38 | 3 35 83 62 8 Regions Visited 4 Branch Regions 3 Pre-discovered Areas 1 | . . 1 . . Known Exits Taken . | . . . . . Unknown Exits Taken 4 | 1 1 1 1 . Scrap Searched 1 | . . 1 . . Spaces Dug . | . . . . . Terrain Destroyed . | . . . . . Melee . | . . . . . Projectile . | . . . . . AOE . | . . . . . Terrain Rammed . | . . . . . Walls Destroyed . | . . . . . Machines Disabled . | . . . . . Actions | -11 -10 -10 -10 -9 --------- Run | Yrd Mat Min Exi Min Total 1162 | 28 151 739 229 15 Wait 2 | . . 2 . . Move 1069 | 28 143 654 229 15 Hop . | . . . . . Pick Up 6 | . 6 . . . Fast Attach . | . . . . . Attach . | . . . . . Detach . | . . . . . Swap . | . . . . . Drop . | . . . . . Fire 22 | . . 22 . . Melee . | . . . . . Ram 9 | . . 9 . . Kick 52 | . . 52 . . Crush . | . . . . . Escape Stasis . | . . . . . Rewire . | . . . . . Trap . | . . . . . Miscellaneous 2 | . 2 . . . Route ------- -11/Scrapyard -10/Materials -10/Mines (discovered 3 exits: [*Mat x2] / *Exi) -10/Exiles -9/Mines History --------- Turn | Location | Event 3 | -11/Scrapyard | Discovered new exit (range 16) 19 | -11/Scrapyard | Entered Materials 157 | -10/Materials | Discovered new exit (range 14) 170 | -10/Materials | Entered Mines 232 | -10/Mines | Discovered new exit (range 14) 301 | -10/Mines | Learned location of Recycling (-9) 430 | -10/Mines | Received a Rocket Launcher from a helpful Derelict 444 | -10/Mines | Discovered new exit (range 8) 470 | -10/Mines | Learned Materials terminal intel 472 | -10/Mines | Found the Drone Emporium 497 | -10/Mines | Core integrity fell below 50% 511 | -10/Mines | Core integrity fell below 20% 589 | -10/Mines | Lost 4 parts (1p2n1w) 732 | -10/Mines | Deemed a non-threat by the Exiles lab entrance 733 | -10/Mines | Discovered new exit (range 5) 1009 | -10/Mines | Entered Exiles 1009 | -10/Exiles | Found Exiles lab abandoned 1269 | -10/Exiles | Discovered new exit (range 14) 1284 | -10/Exiles | Entered Mines 1300 | -9/Mines | Assembled infested the area 1301 | -9/Mines | Destroyed by as-10501 with Assembled Heavy Rifle Last Messages --------------- MAIN.C you're pretty crappy as far as evil overlords go. Imprinter is probably going to wreck your life and you're too stupid to see it coming. 01269_ EXIT=FOUND LOCATION=UNKNOWN GOAL=ESCAPE 01300_ ALERT: Infestation in the mines, dispatching Demolisher response squad. Map ----- +----------------------------------------------------+ | ?????????????????????????????????? | | ?????????????????????????????????? | | ?????????????????????????????????? | | ?????????????????????????????????? | | ?????????????????????????????????? | | ?????????????????????????????????? | | ?????????????????????????????????? | | ?????????????????????????????????? | | ?????????????????????????????????? | | ?????????????????????????????????? | | ?????????????????????????????????? | | ???????????????????????????# a???? | | ??????????????????????????# a #?? | | ?????????????????????????? #?? | | ?????????????????????????? #?? | | ?????????????????????????? #?? | | ?????????????????????????? #?? | | ????????????????????????## #?? | | ???????????????????????? ??? | | ???????????????????????? ???? | | ????????????????????????# ???? | | ???????????????????????## ????? | | ???????????????????????? ?????? | | ???????????????????????? #?????? | | ????????????????????????# #?????? | | ????????????????????????#g #?????? | | ????????????????????????# #?????? | | ????????????????????????# #?????? | | ??????????????????????### #?????? | | ??????????????????????# #?????? | | ??????????????????????# #?????? | | ??????????????????????# ###?????? | | ??????????????????????# #???????? | | ?????????????????????## ######??? | | ?????????????????????# #??? | | ?????????????????????# """ #??? | | ?????????????????????# """ #??? | | ?????????????????????# """ #??? | | ?????????????????????# #??? | | ?????????????????????# #??? | | ?????????????????????# #??? | | ?????????????????????# #??? | | ?????????????????????##########??? | | ?????????????????????????????????? | | ?????????????????????????????????? | | ?????????????????????????????????? | | ?????????????????????????????????? | | ?????????????????????????????????? | | ?????????????????????????????????? | | ?????????????????????????????????? | +----------------------------------------------------+ Best States ------------- Heat Dissipation 40 Energy Generation 19 Energy Capacity 200 Sight Range 16 Terrain Scan Density 10 Evasion (%) 55 Item Schematics ----------------- None Robot Schematics ------------------ None Fabricated ------------ Nothing Repaired ---------- Nothing Alien Tech Used ----------------- None Achievements -------------- None Challenges ------------ None Polymind | -11 -10 -10 -10 -9 ---------- Run | Yrd Mat Min Exi Min Hosts 3 | 1 . 2 . . Combat Hostiles 2 | . . 2 . . Allies . | . . . . . Unique Host Classes 2 | 1 . 1 . . Average Host Suspicion 61 | 1 37 87 . 6 Unsuspicious Activity 19 | 2 10 7 . . Returns to Shadow . | . . . . . Fuzzy Dispatches . | . . . . . Protomatter Created 8 | . . 8 . . Used 50 | 5 . 45 . . Decayed . | . . . . . Highest Spend 30 | 5 . 30 . . Top 5 Hosts by Kills: G-47 Trooper (-10/Mines: 2) G-34 Mercenary (-10/Mines: 1) Game ------ Seed ActuatorIonFocus Manual? 0 Play Time 00:05:16 Cumulative 183.9 hours Start 2025.05.23 @ 13:47:40 End 2025.05.23 @ 13:52:51 Sessions 1 Manual Loads 0 Difficulty Rogue Special Mode Winter2022/Polymind Game No. 207 Rogue 207 Adventurer 0 Explorer 0 Win Type - Total 1 Types 1/0/0/0/0/0/0/0/0/0 Lore% 70 Gallery% 70 Achievement% 61 Wizard Run 0 Options --------- Layout 1 ASCII 0 Keyboard 0 Movement Numpad Keybinds 0 Fullscreen 1 Font 24/Smallcaps Map View 50x35 Zoom Use 0% Tactical HUD 1 Map Filters NONE Filters NONE Steam 1 RUN: f59da5da-5799-43d5-a178-d85e925f8100